fUSD/lending_fUSD_20260509
["ID","MTS","AMOUNT","RATE_DAILY","PERIOD"]
[421905817,1778320321000,-657.92,0.00024658,25]
[421905770,1778320321000,-150.0,0.00023229,7]
[421905769,1778320321000,-750.0,0.00023229,2]
[421905774,1778320321000,-546.0,0.00023279,7]
[421905789,1778320321000,-172.38,0.00024,2]
[421905772,1778320321000,-555.0,0.00023279,7]
[421905778,1778320321000,-401.2932083,0.000235,2]
[421905775,1778320321000,-203.62,0.00023288,4]
[421905777,1778320321000,-1231.4235307,0.00023311,2]
[421905779,1778320321000,-218.18,0.000236,30]
[421905773,1778320321000,-1108.0,0.00023279,7]
[421905780,1778320321000,-3837.7691334,0.00023602,2]
[421905781,1778320321000,-1050.0,0.00023607,2]
[421905782,1778320321000,-300.0,0.00023607,7]
[421905783,1778320321000,-155.32791705,0.00023653,2]
[421905784,1778320321000,-150.0,0.00023834,2]
[421905785,1778320321000,-458.39522433,0.00023982,2]
[421905786,1778320321000,-1035.89208233,0.00024,2]
[421905776,1778320321000,-1000.0,0.00023288,15]
[421905818,1778320321000,-150.0,0.00024658,4]
[421905816,1778320321000,-150.0,0.00024633,2]
[421905819,1778320321000,-151.0,0.00024658,2]
[421905853,1778320321000,-600.28,0.00025,2]
[421905850,1778320321000,-271.72797687,0.00024973,2]
[421905851,1778320321000,-150.0,0.0002499,4]
[421905856,1778320321000,-1806.39039942,0.00025,2]
[421905855,1778320321000,-209.99094204,0.00025,2]
[421905857,1778320321000,-540.0,0.00025,2]
[421905861,1778320321000,-541.08606429,0.00025,7]
[421905866,1778320321000,-150.0,0.00025109,4]
[421905858,1778320321000,-618.12356293,0.00025,2]
[421905862,1778320321000,-2126.1513905,0.00025,2]
[421905865,1778320321000,-150.0,0.00025089,4]
[421905859,1778320321000,-3079.89193733,0.00025,2]
[421905854,1778320321000,-1127.35330078,0.00025,2]
[421905864,1778320321000,-214.73073128,0.00025,7]
[421905860,1778320321000,-51849.9120475,0.00025,7]
[421905868,1778320321000,-150.0,0.0002518,4]
[421905867,1778320321000,-1570.71,0.00025122,2]
[421905869,1778320321000,-3837.7691334,0.00025209,2]
[421905870,1778320321000,-150.0,0.00025228,4]
[421905876,1778320321000,-150.0,0.00025347,4]
[421905875,1778320321000,-214.73073128,0.000253,30]
[421905820,1778320321000,-151.0,0.00024658,2]
[421905873,1778320321000,-6335.63,0.00025234,30]
[421905874,1778320321000,-150.0,0.00025241,4]
[421905872,1778320321000,-356.86,0.00025234,30]
[421905877,1778320321000,-3592.82249888,0.00025371,2]
[421905863,1778320321000,-354.57272464,0.00025,2]
[421905849,1778320321000,-1825.06330286,0.00024946,7]
[421905871,1778320321000,-239.21,0.00025234,30]
[421905848,1778320321000,-4510.56669714,0.00024946,7]
[421905852,1778320321000,-597.0,0.00025,2]
[421905821,1778320321000,-151.0,0.00024658,2]
[421905822,1778320321000,-151.0,0.00024658,2]
[421905825,1778320321000,-151.0,0.00024658,2]
[421905824,1778320321000,-210.70583,0.00024658,2]
[421905826,1778320321000,-151.0,0.00024658,2]
[421905828,1778320321000,-1181.46,0.00024658,2]
[421905829,1778320321000,-1000.0,0.00024658,2]
[421905827,1778320321000,-151.0,0.00024658,2]
[421905830,1778320321000,-186.899662,0.00024658,2]
[421905831,1778320321000,-186.899662,0.00024658,2]
[421905833,1778320321000,-186.899662,0.00024658,2]
[421905832,1778320321000,-186.899662,0.00024658,2]
[421905823,1778320321000,-151.0,0.00024658,2]
[421905841,1778320321000,-150.0,0.00024752,4]
[421905840,1778320321000,-6335.63,0.00024658,2]
[421905846,1778320321000,-239.21,0.00024946,7]
[421905844,1778320321000,-10266.7191,0.000249,2]
[421905843,1778320321000,-150.0,0.00024871,4]
[421905839,1778320321000,-356.86,0.00024658,2]
[421905845,1778320321000,-150.0,0.00024937,4]
[421905834,1778320321000,-186.899662,0.00024658,2]
[421905836,1778320321000,-186.899662,0.00024658,2]
[421905842,1778320321000,-150.0,0.00024834,2]
[421905837,1778320321000,-186.899662,0.00024658,2]
[421905847,1778320321000,-356.86,0.00024946,7]
[421905838,1778320321000,-239.21,0.00024658,2]
[421905835,1778320321000,-186.899662,0.00024658,2]
[421905904,1778320322000,-2010.29548551,0.00025811,7]
[421905905,1778320322000,-4325.33451449,0.00025811,7]
[421905906,1778320322000,-150.0,0.00025823,4]
[421905907,1778320322000,-150.0,0.00025834,2]
[421905910,1778320322000,-150.0,0.00025942,4]
[421905909,1778320322000,-12008.64155444,0.0002589,5]
[421905912,1778320322000,-607.98066697,0.0002599,2]
[421905911,1778320322000,-583.44406054,0.00025959,2]
[421905913,1778320322000,-4576.52830781,0.00026,2]
[421905908,1778320322000,-150.0,0.00025849,4]
[421905919,1778320322000,-150.0,0.00026001,4]
[421905917,1778320322000,-151.0,0.00026,2]
[421905918,1778320322000,-150.0,0.00026001,4]
[421905915,1778320322000,-186.21753385,0.00026,30]
[421905897,1778320322000,-355.55,0.00025655,2]
[421905916,1778320322000,-151.0,0.00026,2]
[421905920,1778320322000,-3837.7691334,0.00026013,2]
[421905922,1778320322000,-245.54,0.00026027,7]
[421905921,1778320322000,-171.56,0.00026027,7]
[421905923,1778320322000,-280.13,0.00026027,7]
[421905925,1778320322000,-150.0,0.00026061,4]
[421905914,1778320322000,-219.03797869,0.00026,2]
[421905898,1778320322000,-150.0,0.00025704,4]
[421905896,1778320322000,-150.0,0.00025585,4]
[421905903,1778320322000,-356.86,0.00025811,7]
[421905924,1778320322000,-150.0,0.00026027,4]
[421905882,1778320322000,-715.64821166,0.00025373,30]
[421905880,1778320322000,-186.899662,0.00025372,2]
[421905878,1778320322000,-186.899662,0.00025372,2]
[421905881,1778320322000,-186.899662,0.00025372,2]
[421905879,1778320322000,-186.899662,0.00025372,2]
[421905883,1778320322000,-150.0,0.00025466,4]
[421905884,1778320322000,-2047.2051867,0.00025482,2]
[421905887,1778320322000,-151.0,0.00025523,2]
[421905888,1778320322000,-151.0,0.00025523,2]
[421905889,1778320322000,-239.21,0.00025523,2]
[421905885,1778320322000,-5041.77364479,0.000255,2]
[421905890,1778320322000,-356.86,0.00025523,2]
[421905886,1778320322000,-151.0,0.00025523,2]
[421905892,1778320322000,-150.0,0.00025545,4]
[421905894,1778320322000,-150.0,0.00025545,4]
[421905893,1778320322000,-150.0,0.00025545,4]
[421905900,1778320322000,-270.39,0.00025786,2]
[421905901,1778320322000,-151.0,0.000258,2]
[421905899,1778320322000,-150.0,0.00025728,4]
[421905895,1778320322000,-150.0,0.00025545,4]
[421905902,1778320322000,-239.21,0.00025811,7]
[421905891,1778320322000,-6335.63,0.00025523,2]
[421905927,1778320322000,-356.86,0.00026099,30]
[421905929,1778320322000,-150.0,0.00026153,4]
[421905955,1778320322000,-150.0,0.00026762,4]
[421905956,1778320322000,-150.0,0.00026775,4]
[421905957,1778320322000,-3837.7691334,0.00026816,2]
[421905959,1778320322000,-150.0,0.00026822,4]
[421905958,1778320322000,-2790.58136914,0.00026817,2]
[421905960,1778320322000,-150.0,0.00026834,2]
[421905961,1778320322000,-150.0,0.00026894,4]
[421905962,1778320322000,-151.0,0.000269,2]
[421905966,1778320322000,-239.21,0.00026964,30]
[421905963,1778320322000,-249.0,0.00026905,2]
[421905954,1778320322000,-6335.63,0.00026676,7]
[421905964,1778320322000,-248.0,0.00026905,2]
[421905968,1778320322000,-6335.63,0.00026964,30]
[421905967,1778320322000,-356.86,0.00026964,30]
[421905970,1778320322000,-214.73073128,0.00027,30]
[421905975,1778320322000,-152.76,0.00027072,2]
[421905972,1778320322000,-2415.538698,0.0002701,2]
[421905974,1778320322000,-150.0,0.00027066,4]
[421905969,1778320322000,-2000.0,0.00027,2]
[421905973,1778320322000,-150.0,0.00027013,4]
[421905971,1778320322000,-162.0,0.00027,7]
[421905926,1778320322000,-239.21,0.00026099,30]
[421905965,1778320322000,-150.0,0.00026914,4]
[421905952,1778320322000,-239.21,0.00026676,7]
[421905943,1778320322000,-150.0,0.00026458,4]
[421905949,1778320322000,-1099.59,0.000265,2]
[421905951,1778320322000,-150.0,0.00026656,4]
[421905932,1778320322000,-150.0,0.00026275,4]
[421905931,1778320322000,-540.8391813,0.00026275,2]
[421905928,1778320322000,-6335.63,0.00026099,30]
[421905930,1778320322000,-150.0,0.0002618,4]
[421905933,1778320322000,-886.4,0.00026296,2]
[421905934,1778320322000,-150.0,0.00026299,4]
[421905939,1778320322000,-27816.14564564,0.000264,2]
[421905938,1778320322000,-6335.63,0.00026388,2]
[421905942,1778320322000,-150.0,0.00026458,4]
[421905937,1778320322000,-356.86,0.00026388,2]
[421905936,1778320322000,-239.21,0.00026388,2]
[421905935,1778320322000,-833.05,0.00026331,2]
[421905940,1778320322000,-150.0,0.0002641,30]
[421905945,1778320322000,-150.0,0.00026458,4]
[421905944,1778320322000,-150.0,0.00026458,4]
[421905947,1778320322000,-500.0,0.00026492,4]
[421905946,1778320322000,-500.0,0.00026492,4]
[421905953,1778320322000,-356.86,0.00026676,7]
[421905948,1778320322000,-516.12,0.00026492,4]
[421905941,1778320322000,-150.0,0.00026418,4]
[421905950,1778320322000,-150.0,0.00026537,4]
[421906013,1778320323000,-150.0,0.0002737,4]
[421906015,1778320323000,-500.0,0.00027373,2]
[421906007,1778320323000,-248.07400725,0.0002737,4]
[421906012,1778320323000,-150.0,0.0002737,4]
[421906011,1778320323000,-152.22223688,0.0002737,4]
[421906009,1778320323000,-237.00640725,0.0002737,4]
[421906006,1778320323000,-237.91,0.00027328,30]
[421906014,1778320323000,-238.65845233,0.0002737,4]
[421906005,1778320323000,-4223.75,0.00027327,7]
[421906010,1778320323000,-240.48343195,0.0002737,4]
[421906017,1778320323000,-4498.31090342,0.0002739,7]
[421906027,1778320323000,-151.0,0.00027397,2]
[421906019,1778320323000,-186.899662,0.0002739,2]
[421906018,1778320323000,-186.899662,0.0002739,2]
[421906020,1778320323000,-186.899662,0.0002739,2]
[421906024,1778320323000,-151.0,0.00027397,2]
[421906021,1778320323000,-186.899662,0.0002739,2]
[421906026,1778320323000,-151.0,0.00027397,2]
[421906025,1778320323000,-151.0,0.00027397,2]
[421906023,1778320323000,-151.0,0.00027397,2]
[421906003,1778320323000,-319.09245593,0.000273,30]
[421906028,1778320323000,-1500.0,0.00027397,2]
[421906031,1778320323000,-151.0,0.00027397,2]
[421906016,1778320323000,-3396.99,0.00027388,30]
[421906004,1778320323000,-159.47,0.00027311,30]
[421905996,1778320323000,-4223.75,0.00027222,2]
[421905997,1778320323000,-150.0,0.00027251,4]
[421905977,1778320323000,-237.91,0.00027104,2]
[421905976,1778320323000,-159.47,0.00027086,2]
[421905978,1778320323000,-327.0,0.00027123,2]
[421905979,1778320323000,-344.0,0.00027123,2]
[421905980,1778320323000,-926.0,0.00027123,2]
[421905982,1778320323000,-526.0,0.00027137,2]
[421905984,1778320323000,-159.47,0.00027198,7]
[421905981,1778320323000,-150.0,0.00027132,4]
[421905985,1778320323000,-237.91,0.00027216,7]
[421905983,1778320323000,-3396.99,0.00027171,2]
[421905988,1778320323000,-300.0,0.00027221,2]
[421905990,1778320323000,-300.0,0.00027221,2]
[421905986,1778320323000,-300.0,0.00027221,2]
[421905987,1778320323000,-300.0,0.00027221,2]
[421905989,1778320323000,-300.0,0.00027221,2]
[421905992,1778320323000,-300.0,0.00027221,2]
[421905991,1778320323000,-300.0,0.00027221,2]
[421906034,1778320323000,-151.0,0.00027397,2]
[421905993,1778320323000,-300.0,0.00027221,2]
[421905998,1778320323000,-1298.15,0.00027253,2]
[421905995,1778320323000,-229.0,0.00027221,2]
[421905994,1778320323000,-300.0,0.00027221,2]
[421906002,1778320323000,-319.09245593,0.000273,30]
[421905999,1778320323000,-239.21,0.00027253,2]
[421906000,1778320323000,-6335.63,0.00027253,2]
[421906001,1778320323000,-3396.99,0.00027279,7]
[421906030,1778320323000,-300.0,0.00027397,2]
[421906008,1778320323000,-150.0,0.0002737,4]
[421906035,1778320323000,-151.0,0.00027397,2]
[421906065,1778320323000,-891.758333,0.00027397,2]
[421906067,1778320323000,-891.758333,0.00027397,2]
[421906063,1778320323000,-891.758333,0.00027397,2]
[421906072,1778320323000,-891.758333,0.00027397,2]
[421906071,1778320323000,-891.758333,0.00027397,2]
[421906066,1778320323000,-891.758333,0.00027397,2]
[421906064,1778320323000,-891.758333,0.00027397,2]
[421906068,1778320323000,-891.758333,0.00027397,2]
[421906069,1778320323000,-891.758333,0.00027397,2]
[421906070,1778320323000,-891.758333,0.00027397,2]
[421906074,1778320323000,-891.758333,0.00027397,2]
[421906073,1778320323000,-891.758333,0.00027397,2]
[421906076,1778320323000,-891.758333,0.00027397,2]
[421906075,1778320323000,-891.758333,0.00027397,2]
[421906084,1778320323000,-3092.64,0.00027397,10]
[421906077,1778320323000,-891.758333,0.00027397,2]
[421906079,1778320323000,-4453.4,0.00027397,10]
[421906081,1778320323000,-151.0,0.00027397,2]
[421906078,1778320323000,-891.758333,0.00027397,2]
[421906080,1778320323000,-3711.17,0.00027397,10]
[421906082,1778320323000,-151.0,0.00027397,2]
[421906083,1778320323000,-239.341546,0.00027397,2]
[421906085,1778320323000,-153.35318821,0.00027397,30]
[421906086,1778320323000,-11201.98366674,0.000274,7]
[421906033,1778320323000,-151.0,0.00027397,2]
[421906061,1778320323000,-1016.6,0.00027397,2]
[421906062,1778320323000,-5344.08,0.00027397,10]
[421906022,1778320323000,-369.44870378,0.00027397,2]
[421906056,1778320323000,-561.814967,0.00027397,2]
[421906060,1778320323000,-1181.46,0.00027397,2]
[421906037,1778320323000,-151.0,0.00027397,2]
[421906029,1778320323000,-150.00000001,0.00027397,4]
[421906032,1778320323000,-247.188886,0.00027397,2]
[421906039,1778320323000,-264.344028,0.00027397,2]
[421906038,1778320323000,-151.0,0.00027397,2]
[421906040,1778320323000,-561.814967,0.00027397,2]
[421906047,1778320323000,-561.814967,0.00027397,2]
[421906049,1778320323000,-561.814967,0.00027397,2]
[421906048,1778320323000,-561.814967,0.00027397,2]
[421906042,1778320323000,-561.814967,0.00027397,2]
[421906036,1778320323000,-151.0,0.00027397,2]
[421906041,1778320323000,-561.814967,0.00027397,2]
[421906044,1778320323000,-561.814967,0.00027397,2]
[421906045,1778320323000,-561.814967,0.00027397,2]
[421906046,1778320323000,-561.814967,0.00027397,2]
[421906051,1778320323000,-561.814967,0.00027397,2]
[421906050,1778320323000,-561.814967,0.00027397,2]
[421906053,1778320323000,-561.814967,0.00027397,2]
[421906052,1778320323000,-561.814967,0.00027397,2]
[421906057,1778320323000,-561.814967,0.00027397,2]
[421906055,1778320323000,-561.814967,0.00027397,2]
[421906059,1778320323000,-561.814965,0.00027397,2]
[421906054,1778320323000,-561.814967,0.00027397,2]
[421906058,1778320323000,-561.814967,0.00027397,2]
[421906043,1778320323000,-561.814967,0.00027397,2]
[421906089,1778320324000,-2025.775,0.000274,7]
[421906088,1778320324000,-621.66646286,0.000274,7]
[421906087,1778320324000,-348.65259475,0.000274,7]
[421906093,1778320324000,-348.81062464,0.00014814,2]
[421906090,1778320324000,-346.54505455,0.000274,7]
[421906092,1778320324000,-181.3045001,0.00013466,2]
[421906094,1778320324000,-530.11512474,0.00014739,2]
[421906091,1778320324000,-441.39494545,0.000274,7]
[421906097,1778320497000,-530.11512474,0.00014739,2]
[421906096,1778320497000,-530.11512474,0.00014739,2]
[421906095,1778320497000,-530.11512474,0.00014739,2]
[421906099,1778320498000,-7879.52950104,0.00014739,2]
[421906100,1778320498000,-1290.34537422,0.00014739,2]
[421906098,1778320498000,-300.0,0.00014738,2]
[421906103,1778320510000,-9469.87487526,0.00014739,2]
[421906102,1778320510000,-9469.87487526,0.00014739,2]
[421906101,1778320510000,-9469.87487526,0.00014739,2]
[421906104,1778320511000,-9469.87487526,0.00014739,2]
[421906107,1778320511000,-9469.87487526,0.00014739,2]
[421906106,1778320511000,-9469.87487526,0.00014739,2]
[421906105,1778320511000,-9469.87487526,0.00014739,2]
[421906111,1778320512000,-9469.87487526,0.00014739,2]
[421906109,1778320512000,-500.0,0.00013551,2]
[421906110,1778320512000,-8969.87487526,0.00014739,2]
[421906108,1778320512000,-9469.87487526,0.00014739,2]
[421906112,1778320513000,-9469.87487526,0.00014739,2]
[421906113,1778320513000,-2234.05099792,0.00014739,2]
[421906116,1778320513000,-4999.99,0.00014739,2]
[421906114,1778320513000,-7235.82387734,0.00014739,2]
[421906117,1778320513000,-325.2,0.00014739,2]
[421906118,1778320513000,-1380.5187526,0.00014739,2]
[421906115,1778320513000,-2764.16612266,0.00014739,2]
[421906119,1778320513000,-8619.4712474,0.00014739,2]
[421906120,1778320513000,-850.40362786,0.00014739,2]
[421906126,1778320514000,-1545.3842525,0.00014814,2]
[421906125,1778320514000,-1299.19937536,0.00014814,2]
[421906124,1778320514000,-999.99,0.00014739,2]
[421906123,1778320514000,-299.99,0.00014739,2]
[421906122,1778320514000,-150.99,0.00014739,2]
[421906121,1778320514000,-704.45637214,0.00014739,2]
[421906127,1778320539000,-1200.0,0.00014738,2]
[421906131,1778320574000,-132.0,0.00014739,2]
[421906129,1778320574000,317.14757263,0.0003,120]
[421906128,1778320574000,-300.0,0.00014738,2]
[421906130,1778320574000,-168.0,0.00014739,2]
[421906132,1778320575000,198.06465847,0.00027858,120]
[421906137,1778320621000,-37.0,0.00014739,2]
[421906135,1778320621000,-378.14145347,0.00012277,2]
[421906136,1778320621000,-217.10857529,0.00013505,2]
[421906134,1778320621000,898.823837,7.945e-05,2]
[421906138,1778320621000,-45.89142471,0.00014813,2]
[421906133,1778320621000,-300.0,0.00012277,2]
[421906144,1778320622000,150.0,8.024e-05,2]
[421906143,1778320622000,-678.14145347,0.00014665,2]
[421906142,1778320622000,-678.14145347,0.00014665,2]
[421906140,1778320622000,-181.198,0.00014639,2]
[421906141,1778320622000,-339.62345347,0.00014665,2]
[421906139,1778320622000,-157.32,0.00013733,2]
[421906146,1778320636000,-866.09363959,0.00014665,2]
[421906147,1778320721000,184.02382585,0.00026723,120]
[421906149,1778320762000,1818.73,8.77e-05,2]
[421906148,1778320762000,1818.73,8.331e-05,2]
[421906151,1778320763000,1818.73,9.647e-05,2]
[421906150,1778320763000,1818.73,9.208e-05,2]
[421906152,1778320776000,-500.25264385,0.00010085,2]
[421906153,1778320792000,-1318.47735615,0.00010085,2]
[421906154,1778320826000,-165.63,0.00010524,2]
[421906156,1778320827000,-165.63,0.00010962,2]
[421906155,1778320827000,-1653.1,0.00010524,2]
[421906168,1778320955000,-165.63,0.00011839,2]
[421906167,1778320955000,-1653.1,0.00011401,2]
[421906166,1778320955000,-165.63,0.00011401,2]
[421906165,1778320955000,-1653.1,0.00010962,2]
[421906169,1778320956000,-1653.1,0.00011839,2]
[421906171,1778320957000,-453.1,0.00012278,2]
[421906170,1778320957000,-1200.0,0.00012277,2]
[421906172,1778320957000,-1365.63,0.00012278,2]
[421906175,1778320957000,-1353.1,0.00012716,2]
[421906174,1778320957000,-300.0,0.00012715,2]
[421906173,1778320957000,-287.47,0.00012715,2]
[421906182,1778320958000,-158.9,0.00013504,2]
[421906181,1778320958000,-836.04,0.00013504,2]
[421906180,1778320958000,-658.16,0.00013504,2]
[421906178,1778320958000,-631.26,0.00013155,2]
[421906179,1778320958000,-1021.84,0.00013504,2]
[421906177,1778320958000,-1187.47,0.00013155,2]
[421906176,1778320958000,-465.63,0.00012716,2]
[421906183,1778320959000,-841.09,0.00013504,2]
[421906184,1778320959000,-150.99,0.00013504,2]
[421906185,1778320959000,-661.02,0.00013593,2]
[421906190,1778320959000,-31.76,0.00014032,2]
[421906186,1778320959000,-1157.71,0.00013593,2]
[421906188,1778320959000,-197.39,0.00014032,2]
[421906189,1778320959000,-1621.34,0.00014032,2]
[421906187,1778320959000,-298.0,0.00013948,2]
[421906191,1778320960000,-1653.1,0.00014032,2]
[421906196,1778321115000,1007.05355768,0.00030137,120]
[421906199,1778321362000,567.42763011,0.0003,120]
[421906200,1778321364000,-1047.67740867,0.00010599,2]
[421906201,1778321374000,167.44365103,0.00026936,120]
[421906202,1778321379000,165.63,9.668e-05,2]
[421906203,1778321381000,242.65,0.00029452,120]
[421906211,1778321431000,-633.801,0.00011659,2]
[421906208,1778321431000,-12465.66697786,0.000107,2]
[421906207,1778321431000,-300.0,0.00010699,2]
[421906210,1778321431000,-1127.42271096,0.00011,2]
[421906213,1778321431000,-1680.0,0.00011769,2]
[421906209,1778321431000,-214.73073128,0.00010782,2]
[421906212,1778321431000,-1207.34495597,0.00011769,2]
[421906204,1778321431000,-3359.57434046,0.00010599,2]
[421906206,1778321431000,-1200.0,0.00010699,2]
[421906214,1778321431000,-2359.20193714,0.00011899,2]
[421906205,1778321431000,-228.0,0.00010699,2]
[421906217,1778321431000,-151.0,0.00011997,2]
[421906215,1778321431000,-506.58103901,0.000119,2]
[421906224,1778321431000,-589504.47906222,0.00012,2]
[421906220,1778321431000,-9999.99,0.00011998,2]
[421906218,1778321431000,-150.0,0.00011998,2]
[421906225,1778321431000,-530.12669042,0.00012,2]
[421906216,1778321431000,-1357.02870594,0.000119,2]
[421906222,1778321431000,-500.0,0.00011999,2]
[421906221,1778321431000,-500.0,0.00011999,2]
[421906219,1778321431000,-24999.99,0.00011998,2]
[421906223,1778321431000,-192094.10219404,0.00012,2]
[421906527,1778321447000,-2047.2051868,0.00012767,2]
[421906541,1778321447000,-2080.17592889,0.00013047,2]
[421906539,1778321447000,-151.0,0.00013047,2]
[421906531,1778321447000,-4746.5207046,0.00012855,2]
[421906529,1778321447000,-2747.87761776,0.00012855,2]
[421906526,1778321447000,-500.0,0.00012547,2]
[421906528,1778321447000,-15776.11191534,0.00012855,2]
[421906525,1778321447000,-500.0,0.00012273,2]
[421906523,1778321447000,-150.0,0.00012169,2]
[421906519,1778321447000,-8092.0,0.00012,2]
[421906522,1778321447000,-4717.22369454,0.00012069,2]
[421906521,1778321447000,-116393.77096777,0.00012,2]
[421906524,1778321447000,-261.04,0.00012272,2]
[421906532,1778321447000,-1357.02870594,0.00012887,2]
[421906518,1778321447000,-346.87093031,0.00012,2]
[421906516,1778321447000,-617.13733858,0.00012,2]
[421906517,1778321447000,-1618.8603266,0.00012,2]
[421906514,1778321447000,-431.03557,0.00012,2]
[421906515,1778321447000,-2274.76507419,0.00012,2]
[421906513,1778321447000,-5000.01,0.00012,2]
[421906520,1778321447000,-499.40535172,0.00012,2]
[421906533,1778321447000,-2351.0,0.00012946,2]
[421906530,1778321447000,-1318.6565871,0.00012855,2]
[421906534,1778321447000,-151.0,0.00013047,2]
[421906557,1778321447000,-1149.11159905,0.00013932,2]
[421906558,1778321447000,-120930.648523,0.00013932,2]
[421906555,1778321447000,-380.52932165,0.00013932,2]
[421906540,1778321447000,-151.0,0.00013047,2]
[421906550,1778321447000,-593.44548466,0.00013873,2]
[421906552,1778321447000,-2359.20193707,0.00013914,2]
[421906551,1778321447000,-1357.02870594,0.00013873,2]
[421906554,1778321447000,-2580.13657259,0.00013932,2]
[421906549,1778321447000,-166.81,0.00013699,2]
[421906553,1778321447000,-258.81495429,0.00013922,2]
[421906556,1778321447000,-688.8580236,0.00013932,2]
[421906545,1778321447000,-1756.23592288,0.00013595,2]
[421906544,1778321447000,-1000.0,0.00013586,2]
[421906535,1778321447000,-151.0,0.00013047,2]
[421906537,1778321447000,-151.0,0.00013047,2]
[421906536,1778321447000,-151.0,0.00013047,2]
[421906538,1778321447000,-151.0,0.00013047,2]
[421906543,1778321447000,-205.95,0.00013443,2]
[421906546,1778321447000,-227.76,0.00013686,2]
[421906547,1778321447000,-509.86538559,0.00013698,2]
[421906548,1778321447000,-200.0,0.00013699,2]
[421906542,1778321447000,-255.0,0.00013078,2]
[421906566,1778321448000,-12231.72675233,0.0001399,2]
[421906570,1778321448000,-57758.15,0.00014032,2]
[421906568,1778321448000,-166.042,0.00014031,2]
[421906571,1778321448000,-9999.99,0.00014032,2]
[421906567,1778321448000,-1524.069,0.00014031,2]
[421906573,1778321448000,-1712.0,0.0001424,2]
[421906561,1778321448000,-7458.7479718,0.00013932,2]
[421906564,1778321448000,-1799.6350443,0.00013932,2]
[421906562,1778321448000,-157882.92028724,0.00013932,2]
[421906559,1778321448000,-2029.219,0.0001389,2]
[421906560,1778321448000,-2461.56681681,0.0001389,2]
[421906565,1778321448000,-283970.81685677,0.00013932,2]
[421906572,1778321448000,-159.71,0.00014126,2]
[421906569,1778321448000,-8315.13,0.00014032,2]
[421906584,1778321448000,-307.71477113,0.00014973,2]
[421906576,1778321448000,-1818.73,0.0001447,2]
[421906589,1778321448000,-2022.025,0.00015,2]
[421906587,1778321448000,-38502.58678184,0.00015,2]
[421906586,1778321448000,-500.0,0.00014973,2]
[421906583,1778321448000,-500.0,0.00014973,2]
[421906574,1778321448000,-433.0,0.00014254,2]
[421906582,1778321448000,-1818.73,0.00014909,2]
[421906588,1778321448000,-70990.8652529,0.00015,2]
[421906581,1778321448000,-168.76,0.00014739,2]
[421906579,1778321448000,-1672.61888549,0.00014739,2]
[421906580,1778321448000,-184.75390111,0.00014739,2]
[421906575,1778321448000,-166.81,0.00014384,2]
[421906577,1778321448000,-150.0,0.00014572,2]
[421906578,1778321448000,-940.22,0.00014598,2]
[421906585,1778321448000,-500.18331774,0.00014973,2]
[421906590,1778321449000,-80213.99999999,0.00015,2]
[421906591,1778321449000,-301.0575994,0.00015,2]
[421906593,1778321449000,-17411.27490834,0.00015,2]
[421906595,1778321449000,-1590.0,0.00015,2]
[421906592,1778321449000,-129093.12539793,0.00015,2]
[421906594,1778321449000,-2540.2004797,0.00015,2]
[421907807,1778321498000,1925.61541,0.00022246,120]
[421907808,1778321526000,-497.59409284,0.00011999,2]
[421907809,1778321564000,-2.40590716,0.00011999,2]
[421907811,1778321612000,-169.21,0.00011999,2]
[421907812,1778321612000,-330.79,0.00011999,2]